Workbook

Sheet 采购清单
A1: 东莞市水务集团净水有限公司2024年劳保消防物资采购项目采购清单
A2: 序号 | B2: 物资重要程度 | C2: 物资类别 | D2: 物资名称 | E2: 推荐品牌 | F2: 规格型号 | G2: 用途 | H2: 单位 | I2: 净水公司暂定数量 | J2: 石鼓公司暂定数量 | K2: 樟村公司暂定数量 | L2: 合计暂定数量 | M2: 不含税预算综合单价（元） | N2: 净水公司公司不含税预算小计（元） | O2: 石鼓公司不含税预算小计（元） | P2: 樟村公司不含税预算小计（元） | Q2: 不含税预算小计（元） | R2: 参考图样
A3: 1 | B3: ▲ | C3: 劳保物资 | D3: 高压绝缘垫 | E3: 3M、谋福、回固、SHEFFIELD/钢盾、WEISI/威士 | F3: 宽度1米*厚度5mm耐电压10kv | G3: 高低压配电房用 | H3: 米 | I3: 0 | J3: 1035 | K3: 100 | L3: 1135.00 | M3: 91.33 | N3: =I3*M3 -> 0.00 | O3: =J3*M3 -> 94526.55 | P3: =M3*K3 -> 9133.00 | Q3: =P3+O3+N3 -> 103659.55
A4: 2 | B4: ▲ | C4: 劳保物资 | D4: 四合一便携式气体检测仪 | E4: 希玛、保时安、爱德克斯、艾科思、伊美尔 | F4: 检测气体：氧气/硫化氢/一氧化碳/可燃气体 | G4: 环境气体检测、测试 | H4: 台 | I4: 0 | J4: 27 | K4: 0 | L4: 27.00 | M4: 824.30 | N4: =I4*M4 -> 0.00 | O4: =J4*M4 -> 22256.10 | P4: =M4*K4 -> 0.00 | Q4: =P4+O4+N4 -> 22256.10
A5: 3 | B5: ▲ | C5: 劳保物资 | D5: 一次性丁睛手套 | E5: 英科/爱马斯/高邦 | F5: 100只/盒装（有粉） 颜色：白色或蓝色 | G5: 手部防护 | H5: 盒 | I5: 0 | J5: 848 | K5: 0 | L5: 848.00 | M5: 30.90 | N5: 0.00 | O5: 26203.20 | P5: 0.00 | Q5: 26203.20
A6: 4 | B6: ▲ | C6: 劳保物资 | D6: 一次性丁睛手套 | E6: 英科/爱马斯/高邦 | F6: 100只/盒（无粉） 颜色：白色或蓝色 | G6: 手部防护 | H6: 盒 | I6: 0 | J6: 500 | K6: 0 | L6: 500.00 | M6: 30.37 | N6: 0.00 | O6: 15185.00 | P6: 0.00 | Q6: 15185.00
A7: 5 | B7: ▲ | C7: 消防物资 | D7: 正压式呼吸器 | E7: 3M/霍尼韦尔/梅思安 | F7: 全套空气呼吸器正压式消防空气呼吸器面罩防火用呼吸器，6.8L，瓶身碳纤维 | G7: 有限空间呼吸防护 | H7: 套 | I7: 0 | J7: 12 | K7: 0 | L7: 12.00 | M7: 3582.65 | N7: 0.00 | O7: 42991.80 | P7: 0.00 | Q7: 42991.80
A8: 6 | B8: ▲ | C8: 劳保物资 | D8: 通风机 | E8: 阿斯卡利、 六奥、HEYUNCN、 欧士戈、阿斯卡利 | F8: 防爆型，功率550kw，220v，轴流风机，ctF3-2 | G8: 有限空间作业通风 | H8: 台 | I8: 0 | J8: 13 | K8: 0 | L8: 13.00 | M8: 1236.28 | N8: 0.00 | O8: 16071.64 | P8: 0.00 | Q8: 16071.64
A9: 7 | B9: ▲ | C9: 劳保物资 | D9: 救援三脚架 | E9: 谋福、援邦、趣行、EZH | F9: 材质：高强度铝合金，可伸缩支脚，自适应底脚设有环形保护链，优等自锁绞盘，工作负荷≥180kg，消防认证，安全系数：10.规格：支架展开工作高度≥2米，绞盘钢缆长20M | G9: 井下救援、有限空间作业使用 | H9: 套 | I9: 0 | J9: 6 | K9: 0 | L9: 6.00 | M9: 1449.29 | N9: 0.00 | O9: 8695.74 | P9: 0.00 | Q9: 8695.74
A10: 8 | B10: ▲ | C10: 劳保物资 | D10: 救生圈 | E10: 东台、一顺、泰兴 | F10: 2.5KG加厚实心塑料 | G10: 紧急救生 | H10: 个 | I10: 0 | J10: 1000 | K10: 200 | L10: 1200.00 | M10: 86.66 | N10: 0.00 | O10: 86660.00 | P10: 17332.00 | Q10: 103992.00
A11: 9 | C11: 劳保物资 | D11: 长管式呼吸器 | E11: 东消、威固、邑固、谋福 | F11: 管线长度：20米 佩戴方式：头戴式 类型：电动送风系统适用人数：4人； 工作电源：220VAC/50HZ 工作电流：6A 额定功率：72W 工作电压： 12V DC 外壳材质：不锈钢 | G11: 功能：蓄电池送风，无电情况下保证正常工作。 用途：有限空间使用 | H11: 套 | I11: 0 | J11: 1 | K11: 0 | L11: 1.00 | M11: 2688.49 | N11: 0.00 | O11: 2688.49 | P11: 0.00 | Q11: 2688.49
A12: 10 | C12: 劳保物资 | D12: 紧急逃生呼吸器 | E12: 星工、普达、惠利得、谋福、江固、邑固、江波 | F12: 瓶身材质：3L碳纤维瓶 压缩空气瓶、减压器、压力表、输气导管、头罩、背包符ISO23269-1:2008标准，同时满足欧盟船用设备指令(MED)96/98EC要求以及1974年SOLAS公约2000修生案11-2章/13.4和国际消防安全系统规则(FSS)规则第3章2.2 | G12: 用途：有限空间使用紧急逃生 | H12: 套 | I12: 0 | J12: 110 | K12: 2 | L12: 112.00 | M12: 1092.19 | N12: 0.00 | O12: 120140.90 | P12: 2184.38 | Q12: 122325.28
A13: 11 | C13: 劳保物资 | D13: 救生圈护套 | E13: 任意品牌 | F13: 牛津布、防水、防晒 | G13: 防止救生圈老化 | H13: 套 | I13: 0 | J13: 738 | K13: 0 | L13: 738.00 | M13: 37.43 | N13: 0.00 | O13: 27623.34 | P13: 0.00 | Q13: 27623.34
A14: 12 | C14: 劳保物资 | D14: 救生圈储存箱 | E14: IGIFTFIRE、百舟、悍狼、瑞弗莱克 | F14: 材质：不锈钢304 净重：5kg或以上； 尺寸：800mm*800mm*200mm； 配件材质：不锈钢；产品厚度：3mm | G14: 救生圈储存 | H14: 个 | I14: 0 | J14: 225 | K14: 0 | L14: 225.00 | M14: 1128.61 | N14: 0.00 | O14: 253937.25 | P14: 0.00 | Q14: 253937.25
A15: 13 | C15: 劳保物资 | D15: 大浮力救生圈救生腰带 | E15: 百舟、金固雨、斯翼安 | F15: 材质：牛津 产品净重：0.4kg 产品尺寸 标准 | G15: 救援应急用品 | H15: 条 | I15: 1 | J15: 0 | K15: 0 | L15: 1.00 | M15: 132.86 | N15: 132.86 | O15: 0.00 | P15: 0.00 | Q15: 132.86
A16: 14 | C16: 劳保物资 | D16: 挂钩（救生圈） | E16: 任意品牌 | F16: 不锈钢S型挂钩 | G16: 现场悬挂救生圈 | H16: 件 | I16: 0 | J16: 485 | K16: 0 | L16: 485.00 | M16: 32.51 | N16: 0.00 | O16: 15767.35 | P16: 0.00 | Q16: 15767.35
A17: 15 | C17: 劳保物资 | D17: 救生浮绳（含护套） | E17: 东台、祥跃、无锡 | F17: 橘色，材质涤纶，绳长每条20米，绳径8mm,一环一扣，含保护套 | G17: 与船用救生圈配套使用 | H17: 条 | I17: 0 | J17: 1353 | K17: 0 | L17: 1353.00 | M17: 43.66 | N17: 0.00 | O17: 59071.98 | P17: 0.00 | Q17: 59071.98
A18: 16 | C18: 劳保物资 | D18: 盒装浮索 | E18: 任意品牌 | F18: 用救生浮索塑壳救生绳 8mm*30米 | G18: 带壳水上救生绳 盒装浮索 | H18: 条 | I18: 1 | J18: 60 | K18: 0 | L18: 61 | M18: 50.68 | N18: 50.68 | O18: 3040.80 | P18: 0.00 | Q18: 3091.48
A19: 17 | C19: 劳保物资 | D19: 救生杆 | E19: 启泰、渔乐、永晟 | F19: 3m | G19: 紧急救生 | H19: 条 | I19: 0 | J19: 153 | K19: 0 | L19: 153.00 | M19: 83.72 | N19: 0.00 | O19: 12809.16 | P19: 0.00 | Q19: 12809.16
A20: 18 | C20: 劳保物资 | D20: 捞渣网 | E20: 任意品牌 | F20: 网眼小于2mm，可伸缩 | G20: 清理水池用 | H20: 支 | I20: 0 | J20: 75 | K20: 0 | L20: 75.00 | M20: 88.62 | N20: 0.00 | O20: 6646.50 | P20: 0.00 | Q20: 6646.50
A21: 19 | C21: 劳保物资 | D21: 救生衣 | E21: 永晟、一顺、泰兴 | F21: 带救生口哨，反光条 | G21: 紧急水用救生使用 | H21: 件 | I21: 0 | J21: 44 | K21: 0 | L21: 44.00 | M21: 42.41 | N21: 0.00 | O21: 1866.04 | P21: 0.00 | Q21: 1866.04
A22: 20 | C22: 劳保物资 | D22: 户外安全绳 | E22: 利奇、腾达、守众 | F22: 每条20米，股径不少于8mm，带双钩，内芯为钢丝 | G22: 高空防坠紧急安全使用 | H22: 条 | I22: 0 | J22: 113 | K22: 0 | L22: 113.00 | M22: 48.38 | N22: 0.00 | O22: 5466.94 | P22: 0.00 | Q22: 5466.94
A23: 21 | C23: 劳保物资 | D23: 高空作业安全绳套装 | E23: 利奇、腾达、守众 | F23: 颜色：橙色；材料：高强丙纶材质+合金钢；认证：LA CE；拉力：22KN；静载荷≥1200kg；绳长：10m可调节 | G23: 防坠安全逃生 | H23: 套 | I23: 0 | J23: 68 | K23: 0 | L23: 68.00 | M23: 77.76 | N23: 0.00 | O23: 5287.68 | P23: 0.00 | Q23: 5287.68
A24: 22 | C24: 劳保物资 | D24: 麻绳 | E24: 任意品牌 | F24: 直径18毫米 | G24: 多种环境可使用 | H24: 米 | I24: 1 | J24: 0 | K24: 0 | L24: 1.00 | M24: 2.54 | N24: 2.54 | O24: 0.00 | P24: 0.00 | Q24: 2.54
A25: 23 | C25: 劳保物资 | D25: 尼龙绳 | E25: 利奇、腾达、守众 | F25: 直径：6-8mm | G25: 紧急安全使用 | H25: 米 | I25: 0 | J25: 790 | K25: 1000 | L25: 1790.00 | M25: 3.42 | N25: 0.00 | O25: 2701.80 | P25: 3420.00 | Q25: 6121.80
A26: 24 | C26: 劳保物资 | D26: 防坠网(软尼龙绳) | E26: 任意品牌 | F26: 尺寸直径700mm＋不锈钢挂钩 | G26: 污泥井雨水井防护 | H26: 个 | I26: 0 | J26: 90 | K26: 0 | L26: 90.00 | M26: 12.23 | N26: 0.00 | O26: 1100.70 | P26: 0.00 | Q26: 1100.70
A27: 25 | C27: 劳保物资 | D27: 救援拖车绳 | E27: 任意品牌 | F27: 长度3米，3吨牵引绳钩捆绑带加厚 | G27: 车辆牵引使用 | H27: 套 | I27: 0 | J27: 7 | K27: 0 | L27: 7.00 | M27: 31.77 | N27: 0.00 | O27: 222.39 | P27: 0.00 | Q27: 222.39
A28: 26 | C28: 劳保物资 | D28: 五点式安全带 | E28: 3M/霍尼韦尔/上海守众 | F28: 国标，双钩背腰带式2m*150kg、锻镀锌钢配件、高强度聚酯绳 | G28: 高空全身式防护保护 | H28: 条 | I28: 0 | J28: 102 | K28: 0 | L28: 102.00 | M28: 160.09 | N28: 0.00 | O28: 16329.18 | P28: 0.00 | Q28: 16329.18
A29: 27 | C29: 劳保物资 | D29: 安全帽 | E29: 3M/霍尼韦尔/梅思安 | F29: 附带特防中心检验报告，前面和两侧分别印LOGO和公司名称 | G29: 头部防护 | H29: 顶 | I29: 0 | J29: 312 | K29: 0 | L29: 312.00 | M29: 40.65 | N29: 0.00 | O29: 12682.80 | P29: 0.00 | Q29: 12682.80
A30: 28 | C30: 劳保物资 | D30: 安全帽 | E30: 3M/霍尼韦尔/梅思安 | F30: 防砸防冲击透气，前面和两侧分别印LOGO和公司名称 | G30: 用于日常检查工作，到项目检查。 | H30: 顶 | I30: 10 | J30: 182 | K30: 10 | L30: 202.00 | M30: 40.65 | N30: 406.50 | O30: 7398.30 | P30: 406.50 | Q30: 8211.30
A31: 29 | C31: 劳保物资 | D31: 防晒帽 | E31: 任意品牌 | F31: 加大帽檐15cm配遮阳帘子 | G31: 现场工作防晒使用 | H31: 顶 | I31: 0 | J31: 665 | K31: 0 | L31: 665.00 | M31: 27.17 | N31: 0.00 | O31: 18068.05 | P31: 0.00 | Q31: 18068.05
A32: 30 | C32: 劳保物资 | D32: 草帽 | E32: 任意品牌 | F32: 尺寸：直径52CM | G32: 遮阳防晒 | H32: 顶 | I32: 0 | J32: 100 | K32: 0 | L32: 100.00 | M32: 8.24 | N32: 0.00 | O32: 824.00 | P32: 0.00 | Q32: 824.00
A33: 31 | C33: 劳保物资 | D33: 有机玻璃防护面罩及头盔 | E33: 3M、霍尼韦尔、蓝鹰 | F33: 有机玻璃面屏，面罩以及头盔 | G33: 面部防护防冲击防飞溅使用 | H33: 个 | I33: 0 | J33: 69 | K33: 0 | L33: 69.00 | M33: 57.58 | N33: 0.00 | O33: 3973.02 | P33: 0.00 | Q33: 3973.02
A34: 32 | C34: 劳保物资 | D34: 有机玻璃防护面罩以及支架 | E34: 3M、霍尼韦尔、蓝鹰 | F34: PC聚碳酸酯；功能：防冲击、防飞溅、防刮擦，可套在安全帽上 | G34: 对面部防冲击、防飞溅、防刮擦 | H34: 个 | I34: 0 | J34: 10 | K34: 0 | L34: 10.00 | M34: 73.77 | N34: 0.00 | O34: 737.70 | P34: 0.00 | Q34: 737.70
A35: 33 | C35: 劳保物资 | D35: 氩弧焊面罩 | E35: 3M/代尔塔/路桥 | F35: 可戴式 | G35: 电焊时面罩 | H35: 顶 | I35: 0 | J35: 22 | K35: 0 | L35: 22.00 | M35: 104.42 | N35: 0.00 | O35: 2297.24 | P35: 0.00 | Q35: 2297.24
A36: 34 | C36: 劳保物资 | D36: 防护眼镜 | E36: 3M/霍尼韦尔/百工/合盛 | F36: 材质：PC聚碳酸酯；功能：防冲击、防飞溅、防刮擦 | G36: 眼部防护 | H36: 副 | I36: 0 | J36: 369 | K36: 20 | L36: 389.00 | M36: 14.37 | N36: =I36*M36 -> 0.00 | O36: =J36*M36 -> 5302.53 | P36: =M36*K36 -> 287.40 | Q36: =P36+O36+N36 -> 5589.93
A37: 35 | C37: 劳保物资 | D37: 电焊护目镜 | E37: 3M/霍尼韦尔/百工/合盛 | F37: 聚碳酸酯镜片、乙烯镜框、防高强度光、黑色、镜腿可折叠 | G37: 电焊，切割 | H37: 副 | I37: 0 | J37: 35 | K37: 0 | L37: 35.00 | M37: 24.10 | N37: 0.00 | O37: 843.50 | P37: 0.00 | Q37: 843.50
A38: 36 | C38: 劳保物资 | D38: 电焊面罩 | E38: 台达/路桥/百工 | F38: 佩戴式 | G38: 保护面部、眼睛 | H38: 个 | I38: 0 | J38: 7 | K38: 0 | L38: 7.00 | M38: 41.81 | N38: 0.00 | O38: 292.67 | P38: 0.00 | Q38: 292.67
A39: 37 | C39: 劳保物资 | D39: 防毒面罩+沼气滤盒 | E39: 3M、霍尼韦尔、代尔塔、MSA/梅思安 | F39: 半面罩+滤盒套装+滤棉盖 | G39: 防毒气体呼吸防护使用 | H39: 套 | I39: 0 | J39: 309 | K39: 30 | L39: 339.00 | M39: 164.48 | N39: 0.00 | O39: 50824.32 | P39: 4934.40 | Q39: 55758.72
A40: 38 | C40: 劳保物资 | D40: 防毒面罩+有机滤盒 | E40: 3M、霍尼韦尔、代尔塔、MSA/梅思安 | F40: 半面罩滤毒盒、滤棉及滤棉盖 | G40: 防毒气体呼吸防护使用 | H40: 套 | I40: 0 | J40: 97 | K40: 0 | L40: 97.00 | M40: 135.57 | N40: 0.00 | O40: 13150.29 | P40: 0.00 | Q40: 13150.29
A41: 39 | C41: 劳保物资 | D41: 耳罩 | E41: 3M、霍尼韦尔、以勒 | F41: 工业用防噪音 | G41: 耳部防护，防噪音使用 | H41: 个 | I41: 0 | J41: 54 | K41: 0 | L41: 54.00 | M41: 56.99 | N41: 0.00 | O41: 3077.46 | P41: 0.00 | Q41: 3077.46
A42: 40 | C42: 劳保物资 | D42: 防噪音海棉耳塞 | E42: 3M/霍尼韦尔/代尔塔 | F42: 带线 100副/盒 | G42: 耳部防护 | H42: 盒 | I42: 0 | J42: 15 | K42: 0 | L42: 15.00 | M42: 89.72 | N42: 0.00 | O42: 1345.80 | P42: 0.00 | Q42: 1345.80
A43: 41 | C43: 劳保物资 | D43: 海棉耳塞分配器 | E43: 3M/霍尼韦尔/代尔塔、达林韦尔 | F43: 分配器（内含500副耳塞） 是否带线：不带线 佩戴方式：入耳式 类型：耳塞分配器 材质：聚酰胺酯 形状：钟型 | G43: 储存海棉耳塞 | H43: 个 | I43: 1 | J43: 0 | K43: 0 | L43: 1.00 | M43: 450.71 | N43: 450.71 | O43: 0.00 | P43: 0.00 | Q43: 450.71
A44: 42 | C44: 劳保物资 | D44: 活性炭口罩 | E44: 3m/霍尼韦尔/朝美 | F44: KN95 | G44: 呼吸防护，防尘防雾霾气体过滤 | H44: 个 | I44: 0 | J44: 340 | K44: 0 | L44: 340.00 | M44: 5.43 | N44: 0.00 | O44: 1846.20 | P44: 0.00 | Q44: 1846.20
A45: 43 | C45: 劳保物资 | D45: 工业劳保滤菌棉纱口罩 | E45: 朝美、3M、霍尼韦尔 | F45: 符合YY0469-2011的要求，独立包装LA、全国工业生产许可证表层为40S纱布,第二层为ES防尘棉第三层为SMS无纺布,第四层为KN95过滤材料,第五层为ES防尘棉 | G45: 呼吸防护，防尘防雾霾气体过滤 | H45: 个 | I45: 0 | J45: 90 | K45: 0 | L45: 90.00 | M45: 2.39 | N45: 0.00 | O45: 215.10 | P45: 0.00 | Q45: 215.10
A46: 44 | C46: 劳保物资 | D46: 活性炭口罩 | E46: 3m/霍尼韦尔/朝美 | F46: 四层防尘口罩，50只/盒 | G46: 呼吸防护，气体过滤 | H46: 盒 | I46: 0 | J46: 352 | K46: 0 | L46: 352.00 | M46: 28.13 | N46: 0.00 | O46: 9901.76 | P46: 0.00 | Q46: 9901.76
A47: 45 | C47: 劳保物资 | D47: 复合式紧急喷淋立式洗眼器 | E47: 西斯贝尔、霍尼韦尔、斯壮格 | F47: 全套304不锈钢无缝管材质，底座5mm加厚，抗酸碱耐腐蚀。一年内包换零件 | G47: 眼部及全身紧急冲洗冲淋 | H47: 套 | I47: 0 | J47: 21 | K47: 0 | L47: 21.00 | M47: 1454.40 | N47: 0.00 | O47: 30542.40 | P47: 0.00 | Q47: 30542.40
A48: 46 | C48: 劳保物资 | D48: 3M反光贴 | E48: 路达、新标识、3M | F48: 车身反光贴，强力反光，宽5cm,45米/卷，材质PET材质 | G48: 车身反光贴 | H48: 卷 | I48: 0 | J48: 8 | K48: 0 | L48: 8.00 | M48: 267.47 | N48: 0.00 | O48: 2139.76 | P48: 0.00 | Q48: 2139.76
A49: 47 | C49: 劳保物资 | D49: 反光带 | E49: 路达、新标识、3M | F49: 红白色，3M反光，宽5cm，45米/卷 | G49: 日常防护物资 | H49: 卷 | I49: 1 | J49: 0 | K49: 0 | L49: 1.00 | M49: 168.17 | N49: 168.17 | O49: 0.00 | P49: 0.00 | Q49: 168.17
A50: 48 | C50: 劳保物资 | D50: 安全警示带 | E50: 路达、新标识、3M | F50: 红、白色相间 卷式隔离带一次性，胶质，100米/卷，宽6CM | G50: 警示、隔离 | H50: 卷 | I50: 0 | J50: 593 | K50: 100 | L50: 693.00 | M50: 7.26 | N50: 0.00 | O50: 4305.18 | P50: 726.00 | Q50: 5031.18
A51: 49 | C51: 劳保物资 | D51: 反光地贴胶带 | E51: 路达、新标识、3M | F51: 黄黑光面,宽10CM, 20米/卷 | G51: 地面警示分类隔离使用 | H51: 卷 | I51: 0 | J51: 30 | K51: 0 | L51: 30.00 | M51: 23.01 | N51: 0.00 | O51: 690.30 | P51: 0.00 | Q51: 690.30
A52: 50 | C52: 劳保物资 | D52: 反光地贴胶带 | E52: 路达、新标识、3M | F52: 黄黑光面,宽5CM, 45.7米/卷 | G52: 地面警示分类隔离使用 | H52: 卷 | I52: 0 | J52: 10 | K52: 0 | L52: 10.00 | M52: 12.95 | N52: 0.00 | O52: 129.50 | P52: 0.00 | Q52: 129.50
A53: 51 | C53: 劳保物资 | D53: 经济型防撞护角 | E53: 任意品牌 | F53: 4个每包 | G53: 环境防撞 | H53: 包 | I53: 0 | J53: 100 | K53: 0 | L53: 100.00 | M53: 6.19 | N53: 0.00 | O53: 619.00 | P53: 0.00 | Q53: 619.00
A54: 52 | C54: 劳保物资 | D54: 免贴款防撞条 | E54: 任意品牌 | F54: 宽4cm*厚3cm | G54: 防碰撞 | H54: 卷 | I54: 0 | J54: 31 | K54: 0 | L54: 31.00 | M54: 37.76 | N54: 0.00 | O54: 1170.56 | P54: 0.00 | Q54: 1170.56
A55: 53 | C55: 劳保物资 | D55: 防滑条 | E55: 任意品牌 | F55: 自带3M背胶，黄色 | G55: 安全生产 | H55: 米 | I55: 1 | J55: 0 | K55: 0 | L55: 1.00 | M55: 13.07 | N55: 13.07 | O55: 0.00 | P55: 0.00 | Q55: 13.07
A56: 54 | C56: 劳保物资 | D56: 安全出口指示灯 | E56: 敏华/桂安/普洛得 | F56: 单面 安全出口，3C认证 新国标LED，1W，自带蓄电池，应急时间大于或等于90min | G56: 断电紧急供电使用 | H56: 个 | I56: 10 | J56: 75 | K56: 0 | L56: 85.00 | M56: 36.84 | N56: 368.40 | O56: 2763.00 | P56: 0.00 | Q56: 3131.40
A57: 55 | C57: 劳保物资 | D57: led户外大功率超亮室内外路灯 | E57: 欧普／飞利浦/佳顿/OPPLE/欧普照明 | F57: 50W白光 | G57: 照明 | H57: 个 | I57: 0 | J57: 3 | K57: 0 | L57: 3.00 | M57: 129.79 | N57: 0.00 | O57: 389.37 | P57: 0.00 | Q57: 389.37
A58: 56 | C58: 劳保物资 | D58: 聚光灯 | E58: 欧普/飞利浦/佳顿/OPPLE/欧普照明 | F58: 100W-IP65，LED | G58: 照明 | H58: 个 | I58: 0 | J58: 13 | K58: 0 | L58: 13.00 | M58: 204.20 | N58: 0.00 | O58: 2654.60 | P58: 0.00 | Q58: 2654.60
A59: 57 | C59: 劳保物资 | D59: 应急照明灯 | E59: 敏华、桂安、FSL、艺光 | F59: 新国标3C认证消防应急灯、充电式双头式，LED，3W，自带蓄电池，应急时间大于或等于90min | G59: 断电紧急照明使用 | H59: 个 | I59: 10 | J59: 70 | K59: 0 | L59: 80.00 | M59: 44.81 | N59: 448.10 | O59: 3136.70 | P59: 0.00 | Q59: 3584.80
A60: 58 | C60: 劳保物资 | D60: 应急吸顶灯 | E60: 欧普／飞利浦/OPPLE/欧普照明 | F60: 普通开关控制，15w，LED | G60: 照明 | H60: 个 | I60: 1 | J60: 0 | K60: 0 | L60: 1.00 | M60: 55.73 | N60: 55.73 | O60: 0.00 | P60: 0.00 | Q60: 55.73
A61: 59 | C61: 劳保物资 | D61: 吸顶灯 | E61: 欧普/飞利浦/OPPLE/欧普照明 | F61: 全白 25w白光,LED | G61: 照明 | H61: 个 | I61: 1 | J61: 0 | K61: 0 | L61: 1.00 | M61: 66.83 | N61: 66.83 | O61: 0.00 | P61: 0.00 | Q61: 66.83
A62: 60 | C62: 劳保物资 | D62: 人工呼吸面膜 | E62: 华东、沪模、优模、画婷、好万家 | F62: CPR消毒面膜，50片/盒 | G62: 受伤人员紧急人工呼吸使用 | H62: 盒 | I62: 0 | J62: 2 | K62: 0 | L62: 2.00 | M62: 66.59 | N62: 0.00 | O62: 133.18 | P62: 0.00 | Q62: 133.18
A63: 61 | C63: 劳保物资 | D63: 防爆手电筒 | E63: 海洋王、神火、华升、南槺 | F63: 防水防爆防震、LED灯，可充电 | G63: 易燃防爆环境照明使用 | H63: 个 | I63: 0 | J63: 43 | K63: 0 | L63: 43.00 | M63: 406.05 | N63: 0.00 | O63: 17460.15 | P63: 0.00 | Q63: 17460.15
A64: 62 | C64: 劳保物资 | D64: 防爆远射探照灯 | E64: 海洋王、神火、华升、南槺 | F64: 防爆.LED,强光,远程 | G64: 易燃防爆环境照明使用 | H64: 个 | I64: 0 | J64: 71 | K64: 0 | L64: 71.00 | M64: 101.48 | N64: 0.00 | O64: 7205.08 | P64: 0.00 | Q64: 7205.08
A65: 63 | C65: 劳保物资 | D65: 安全警示锥桶 | E65: 任意品牌 | F65: 提环橡塑-4.5斤/黑体红白膜斜纹无字，有反光 | G65: 警示，隔离 | H65: 个 | I65: 0 | J65: 334 | K65: 0 | L65: 334.00 | M65: 28.10 | N65: 0.00 | O65: 9385.40 | P65: 0.00 | Q65: 9385.40
A66: 64 | C66: 劳保物资 | D66: 告示牌 | E66: 眼镜猴、点开、众晟、魅驹、LOVELY CASTLE/爱心城堡 | F66: 小心路滑；正在维修；PP材质；上210mm*下300mm*高620mm | G66: 警示，隔离 | H66: 个 | I66: 0 | J66: 23 | K66: 0 | L66: 23.00 | M66: 25.81 | N66: 0.00 | O66: 593.63 | P66: 0.00 | Q66: 593.63
A67: 65 | C67: 劳保物资 | D67: 铁马 | E67: 任意品牌 | F67: 黄黑，1.2m高*2m宽 | G67: 警示，隔离，禁止通行 | H67: 个 | I67: 0 | J67: 66 | K67: 0 | L67: 66.00 | M67: 59.06 | N67: 0.00 | O67: 3897.96 | P67: 0.00 | Q67: 3897.96
A68: 66 | C68: 劳保物资 | D68: 不锈钢铁马 | E68: 任意品牌 | F68: 1.5米宽*1米高 | G68: 警示，隔离，禁止通行 | H68: 个 | I68: 0 | J68: 74 | K68: 0 | L68: 74.00 | M68: 161.12 | N68: =I68*M68 -> 0.00 | O68: =J68*M68 -> 11922.88 | P68: =M68*K68 -> 0.00 | Q68: =P68+O68+N68 -> 11922.88
A69: 67 | C69: 劳保物资 | D69: 警示链 | E69: 任意品牌 | F69: 分黄黑/红白胶链20米/包 | G69: 警示，隔离 | H69: 包 | I69: 0 | J69: 49 | K69: 0 | L69: 49.00 | M69: 46.85 | N69: 0.00 | O69: 2295.65 | P69: 0.00 | Q69: 2295.65
A70: 68 | C70: 劳保物资 | D70: 钢丝锁 | E70: 任意品牌 | F70: 加粗加长80cm*1.6cm | G70: 门锁 | H70: 把 | I70: 0 | J70: 3 | K70: 0 | L70: 3.00 | M70: 23.10 | N70: 0.00 | O70: 69.30 | P70: 0.00 | Q70: 69.30
A71: 69 | C71: 劳保物资 | D71: 汽车三脚架 | E71: 任意品牌 | F71: 国标 | G71: 超强反光 | H71: 个 | I71: 0 | J71: 1 | K71: 0 | L71: 1.00 | M71: 16.26 | N71: 0.00 | O71: 16.26 | P71: 0.00 | Q71: 16.26
A72: 70 | C72: 劳保物资 | D72: 心肺复苏教学用假人 | E72: 苏丰、医博、uitable/舒得康、冠邦、YA-MAN | F72: 半身74*36*26cm带包装 | G72: 教学演练 | H72: 个 | I72: 0 | J72: 3 | K72: 0 | L72: 3.00 | M72: 693.36 | N72: 0.00 | O72: 2080.08 | P72: 0.00 | Q72: 2080.08
A73: 71 | C73: 劳保物资 | D73: 对讲机 | E73: 特易、宝锋、普乐仕、北峰、KOLEEJ/科立捷、普星 | F73: 配电池1块、充电器1个、天线1根 | G73: 安全作业通讯 | H73: 个 | I73: 0 | J73: 99 | K73: 0 | L73: 99.00 | M73: 258.56 | N73: 0.00 | O73: 25597.44 | P73: 0.00 | Q73: 25597.44
A74: 72 | C74: 劳保物资 | D74: 手持喇叭 | E74: 雷公王/赛拓/先科 | F74: 功率50W或100W | G74: 喊话。消防演练使用 | H74: 个 | I74: 0 | J74: 8 | K74: 0 | L74: 8.00 | M74: 323.24 | N74: 0.00 | O74: 2585.92 | P74: 0.00 | Q74: 2585.92
A75: 73 | C75: 劳保物资 | D75: 口哨 | E75: 锐森、燕王、Alljoy/欧佳渔具、朱掌柜、capezio | F75: 不锈钢金属警笛训练户外求生哨子 | G75: 不锈钢高频口哨 | H75: 个 | I75: 1 | J75: 0 | K75: 0 | L75: 1.00 | M75: 5.72 | N75: 5.72 | O75: 0.00 | P75: 0.00 | Q75: 5.72
A76: 74 | C76: 劳保物资 | D76: 绝缘钩 | E76: 双安、中宝、阳光、新欣、驭电 | F76: 10kV，1m1节 | G76: 配电房，有电环境绝缘防电使用 | H76: 把 | I76: 0 | J76: 6 | K76: 0 | L76: 6.00 | M76: 154.41 | N76: 0.00 | O76: 926.46 | P76: 0.00 | Q76: 926.46
A77: 75 | C77: 劳保物资 | D77: 绝缘杆 | E77: 双安、中宝、阳光、新欣、驭电 | F77: 10kV，4节6米，可伸缩 | G77: 配电房，有电环境绝缘防电使用 | H77: 把 | I77: 0 | J77: 13 | K77: 0 | L77: 13.00 | M77: 214.95 | N77: 0.00 | O77: 2794.35 | P77: 0.00 | Q77: 2794.35
A78: 76 | C78: 劳保物资 | D78: 接地棒 | E78: 双安、中宝、阳光、新欣、驭电 | F78: 10KV 1米棒+线长2米*3根+15米主线 | G78: 配电房，有电环境绝缘防电使用 | H78: 套 | I78: 0 | J78: 13 | K78: 0 | L78: 13.00 | M78: 717.43 | N78: 0.00 | O78: 9326.59 | P78: 0.00 | Q78: 9326.59
A79: 77 | C79: 劳保物资 | D79: 验电棒 | E79: 双安、中宝、阳光、新欣、驭电 | F79: 10KV | G79: 配电房，有电环境绝缘防电使用 | H79: 支 | I79: 0 | J79: 20 | K79: 0 | L79: 20.00 | M79: 97.86 | N79: 0.00 | O79: 1957.20 | P79: 0.00 | Q79: 1957.20
A80: 78 | C80: 劳保物资 | D80: 有人工作，禁止操作 | E80: 眼镜猴、点开、众晟、魅驹、LOVELY CASTLE/爱心城堡 | F80: 尺寸：长100*高200*厚3mm，PVC板，白底，安装方式：带绳挂墙式，绳长40cm,安装地点：设备上，字体：微软雅黑 加粗 | G80: 维修使用 | H80: 块 | I80: 0 | J80: 40 | K80: 0 | L80: 40.00 | M80: 33.98 | N80: 0.00 | O80: 1359.20 | P80: 0.00 | Q80: 1359.20
A81: 79 | C81: 劳保物资 | D81: 吊牌 | E81: 任意品牌 | F81: 吊牌，材质亚克力，尺寸：24*8cm | G81: 维修警示用 | H81: 个 | I81: 0 | J81: 80 | K81: 0 | L81: 80.00 | M81: 21.06 | N81: 0.00 | O81: 1684.80 | P81: 0.00 | Q81: 1684.80
A82: 80 | C82: 劳保物资 | D82: 单腰安全带（电工安全带） | E82: Golmud、卡亚斯、西德宝、QYHY/情韵花语、SHEFFIELD/钢盾 | F82: 加厚涤纶织带，锻造钢，符合GB6095-2009的标准。颜色不限，配带挂钩的安全绳。规格：系腰式。 | G82: 高空作业防护保护 | H82: 套 | I82: 1 | J82: 0 | K82: 0 | L82: 1.00 | M82: 114.63 | N82: 114.63 | O82: 0.00 | P82: 0.00 | Q82: 114.63
A83: 81 | C83: 劳保物资 | D83: 20米防坠器 | E83: SHEFFIELD/钢盾、WEISI/威士、安捷顺、西德宝、霍尼韦尔 | F83: 20米 | G83: 室外作业防坠落 | H83: 条 | I83: 0 | J83: 10 | K83: 0 | L83: 10.00 | M83: 517.40 | N83: 0.00 | O83: 5174.00 | P83: 0.00 | Q83: 5174.00
A84: 82 | C84: 劳保物资 | D84: 10米防坠器 | E84: 力虎王/劲友/宏建 | F84: 10米 | G84: 室外作业防坠落 | H84: 条 | I84: 0 | J84: 13 | K84: 0 | L84: 13.00 | M84: 284.75 | N84: 0.00 | O84: 3701.75 | P84: 0.00 | Q84: 3701.75
A85: 83 | C85: 劳保物资 | D85: 小铁桶 | E85: 宝御安、 月娥、 元井汇、 沃绣、 瑰季 | F85: 4L，镀锌铁桶，带绳 | G85: 采集水样 | H85: 只 | I85: 0 | J85: 51 | K85: 0 | L85: 51.00 | M85: 27.37 | N85: 0.00 | O85: 1395.87 | P85: 0.00 | Q85: 1395.87
A86: 84 | C86: 劳保物资 | D86: 储物柜 | E86: DHP、妮莉、招财居、苏美特、京威 | F86: 长900mm宽500mm高1800mm，不锈钢304 | G86: 存放物品 | H86: 个 | I86: 1 | J86: 0 | K86: 0 | L86: 1.00 | M86: 1232.86 | N86: 1232.86 | O86: 0.00 | P86: 0.00 | Q86: 1232.86
A87: 85 | C87: 劳保物资 | D87: 户外遮阳伞 | E87: 任意品牌 | F87: 3米*3米方形边撑（加厚）带承重座 | G87: 户外遮阳 | H87: 把 | I87: 0 | J87: 16 | K87: 0 | L87: 16.00 | M87: 299.12 | N87: 0.00 | O87: 4785.92 | P87: 0.00 | Q87: 4785.92
A88: 86 | C88: 劳保物资 | D88: 围裙 | E88: 帛家/曼达萌/轩延防护 | F88: 擦手防水透气、围裙+袖套 | G88: 防水用 | H88: 件 | I88: 0 | J88: 10 | K88: 0 | L88: 10.00 | M88: 18.78 | N88: 0.00 | O88: 187.80 | P88: 0.00 | Q88: 187.80
A89: 87 | C89: 劳保物资 | D89: 半身连体水裤 | E89: 姜太公/照优/鱼达人 | F89: 105丝加厚，材质PVC，内部是舒适针织布 | G89: 应急有水有沼泽的环境 | H89: 件 | I89: 0 | J89: 124 | K89: 0 | L89: 124.00 | M89: 72.23 | N89: 0.00 | O89: 8956.52 | P89: 0.00 | Q89: 8956.52
A90: 88 | C90: 劳保物资 | D90: 白大褂（工作服） | E90: 任意品牌 | F90: 短袖或长袖、材质要求全棉 | G90: 实验室使用 | H90: 件 | I90: 0 | J90: 125 | K90: 10 | L90: 135.00 | M90: 50.38 | N90: 0.00 | O90: 6297.50 | P90: 503.80 | Q90: 6801.30
A91: 89 | C91: 劳保物资 | D91: 化学防护服 | E91: 3M/霍尼韦尔/杜邦 | F91: C级、轻型 | G91: 身体全身防护 | H91: 件 | I91: 0 | J91: 120 | K91: 0 | L91: 120.00 | M91: 128.75 | N91: 0.00 | O91: 15450.00 | P91: 0.00 | Q91: 15450.00
A92: 90 | C92: 劳保物资 | D92: 大衣 | E92: 狼石、FREE ARMY、火力狼、劲门、盾郎 | F92: 多功能大衣 | G92: 保安晚上巡逻穿 | H92: 件 | I92: 0 | J92: 30 | K92: 0 | L92: 30.00 | M92: 143.55 | N92: 0.00 | O92: 4306.50 | P92: 0.00 | Q92: 4306.50
A93: 91 | C93: 劳保物资 | D93: 军大衣 | E93: 盾牌/3515/一盾 | F93: 反光条中长款，L | G93: 中长款多功能防水 | H93: 件 | I93: 0 | J93: 35 | K93: 45 | L93: 80.00 | M93: 154.00 | N93: 0.00 | O93: 5390.00 | P93: 6930.00 | Q93: 12320.00
A94: 92 | C94: 劳保物资 | D94: 套装雨衣 | E94: 天堂、盾牌/一盾 | F94: 分体式 | G94: 下雨天 | H94: 套 | I94: 0 | J94: 210 | K94: 0 | L94: 210.00 | M94: 61.44 | N94: 0.00 | O94: 12902.40 | P94: 0.00 | Q94: 12902.40
A95: 93 | C95: 劳保物资 | D95: 冰袖 | E95: 任意品牌 | F95: 颜色要求：黑色，白色或其他常规颜色 材质：70D尼龙（锦纶、氨纶纤维） | G95: 手部防护 | H95: 双 | I95: 0 | J95: 927 | K95: 0 | L95: 927.00 | M95: 24.93 | N95: 0.00 | O95: 23110.11 | P95: 0.00 | Q95: 23110.11
A96: 94 | C96: 劳保物资 | D96: 棉袖套 | E96: 任意品牌 | F96: 加厚加长 | G96: 手部防护 | H96: 双 | I96: 0 | J96: 283 | K96: 0 | L96: 283.00 | M96: 4.39 | N96: 0.00 | O96: 1242.37 | P96: 0.00 | Q96: 1242.37
A97: 95 | C97: 劳保物资 | D97: 线手套 | E97: 任意品牌 | F97: 12双/打 | G97: 手部防护 | H97: 打 | I97: 0 | J97: 2309 | K97: 200 | L97: 2509.00 | M97: 8.11 | N97: 0.00 | O97: 18725.99 | P97: 1622.00 | Q97: 20347.99
A98: 96 | C98: 劳保物资 | D98: 点塑线手套 | E98: HANVO、舒乐、KARNITOME/卡尼普、法森娜、申腾 | F98: 耐磨、防滑 | G98: 劳作保护手部 | H98: 双 | I98: 0 | J98: 1744 | K98: 200 | L98: 1944.00 | M98: 1.77 | N98: 0.00 | O98: 3086.88 | P98: 354.00 | Q98: 3440.88
A99: 97 | C99: 劳保物资 | D99: 手掌浸胶背部透气工作防护手套 | E99: 新吉星/赛立特/星宇 | F99: 丁腈胶耐油耐磨损掌面防水，材质：掌面丁腈，背部涤纶(聚酯纤维) | G99: 劳作保护手部 | H99: 双 | I99: 10 | J99: 972 | K99: 0 | L99: 982.00 | M99: 2.48 | N99: 24.80 | O99: 2410.56 | P99: 0.00 | Q99: 2435.36
A100: 98 | C100: 劳保物资 | D100: 帆布手套 | E100: 任意品牌 | F100: 材质：帆布；厚度要求：加厚。规格12双/打。质量和其他要求：带内衬耐磨防滑劳保手套，双层，左右手。 | G100: 护手耐磨 | H100: 打 | I100: 0 | J100: 573 | K100: 0 | L100: 573.00 | M100: 16.43 | N100: =I100*M100 -> 0.00 | O100: =J100*M100 -> 9414.39 | P100: =M100*K100 -> 0.00 | Q100: =P100+O100+N100 -> 9414.39
A101: 99 | C101: 劳保物资 | D101: 高、低压绝缘手套 | E101: 双安、中宝、阳光 | F101: 颜色要求：黑色，白色或其他常规颜色 | G101: 配电房，有电环境绝缘防电使用 | H101: 双 | I101: 0 | J101: 17 | K101: 5 | L101: 22.00 | M101: 54.43 | N101: 0.00 | O101: 925.31 | P101: 272.15 | Q101: 1197.46
A102: 100 | C102: 劳保物资 | D102: 焊工手套 | E102: Delta、佳护、威特仕、E-BULL/逸博尔、Jasic/佳士 | F102: 加厚加长 | G102: 手部电焊防护 | H102: 双 | I102: 0 | J102: 6 | K102: 0 | L102: 6.00 | M102: 45.27 | N102: 0.00 | O102: 271.62 | P102: 0.00 | Q102: 271.62
A103: 101 | C103: 劳保物资 | D103: 工业耐酸碱胶手套 | E103: 4M/霍尼韦尔/代尔塔 | F103: 12双/打 | G103: 防化学品手部防护 | H103: 双 | I103: 0 | J103: 224 | K103: 0 | L103: 224.00 | M103: 14.42 | N103: 0.00 | O103: 3230.08 | P103: 0.00 | Q103: 3230.08
A104: 102 | C104: 劳保物资 | D104: 耐酸耐碱胶手套 | E104: 家保/东江红/联利 | F104: 耐磨、防滑 | G104: 防化防酸碱，手部防护 | H104: 双 | I104: 0 | J104: 125 | K104: 0 | L104: 125.00 | M104: 6.27 | N104: 0.00 | O104: 783.75 | P104: 0.00 | Q104: 783.75
A105: 103 | C105: 劳保物资 | D105: 耐酸碱手套 | E105: 联利/南洋/东方红 | F105: 12双/打，带内衬耐磨防滑劳保手套，双层，左右手 | G105: 手部防化防酸碱使用 | H105: 双 | I105: 0 | J105: 92 | K105: 0 | L105: 92.00 | M105: 6.31 | N105: 0.00 | O105: 580.52 | P105: 0.00 | Q105: 580.52
A106: 104 | C106: 劳保物资 | D106: 防静电PU涂指手套 | E106: 爱不释手、浤盛源、熊先生 | F106: M码，12双/打 | G106: 安全生产 | H106: 打 | I106: 1 | J106: 0 | K106: 0 | L106: 1.00 | M106: 16.75 | N106: 16.75 | O106: 0.00 | P106: 0.00 | Q106: 16.75
A107: 105 | C107: 劳保物资 | D107: 水鞋 | E107: 回力/路利王/固莱科 | F107: 中筒 | G107: 防水用 | H107: 双 | I107: 0 | J107: 63 | K107: 0 | L107: 63.00 | M107: 33.12 | N107: 0.00 | O107: 2086.56 | P107: 0.00 | Q107: 2086.56
A108: 106 | C108: 劳保物资 | D108: 耐酸耐碱靴 | E108: 3M、霍尼韦尔、代尔塔、雨盾、回力 | F108: 油加厚底高筒牛筋雨鞋 | G108: 防化防酸碱，手部防护 | H108: 双 | I108: 0 | J108: 310 | K108: 45 | L108: 355.00 | M108: 39.82 | N108: 0.00 | O108: 12344.20 | P108: 1791.90 | Q108: 14136.10
A109: 107 | C109: 劳保物资 | D109: 高、低压绝缘鞋 | E109: 双安、中宝、阳光、X.C.U、糖朝 | F109: 6-35KV绝缘靴 附带特防中心检验报告 | G109: 配电房，有电环境绝缘防电使用 | H109: 双 | I109: 0 | J109: 14 | K109: 5 | L109: 19.00 | M109: 115.34 | N109: 0.00 | O109: 1614.76 | P109: 576.70 | Q109: 2191.46
A110: 108 | C110: 劳保物资 | D110: 劳保鞋 | E110: 霍尼韦尔、代尔塔、3m | F110: 防砸防水防静电 | G110: 保护脚趾 | H110: 双 | I110: 0 | J110: 568 | K110: 0 | L110: 568.00 | M110: 110.81 | N110: 0.00 | O110: 62940.08 | P110: 0.00 | Q110: 62940.08
A111: 109 | C111: 劳保物资 | D111: 10KV绝缘电工鞋 | E111: 霍尼韦尔、代尔塔、3m、孚美尔、Sata/世达 | F111: 10KV专用，防砸，防刺穿，绝缘耐磨，透气网面 | G111: 电工操作用 | H111: 双 | I111: 10 | J111: 107 | K111: 45 | L111: 162.00 | M111: 153.80 | N111: 1538.00 | O111: 16456.60 | P111: 6921.00 | Q111: 24915.60
A112: 110 | C112: 劳保物资 | D112: 包头防滑防护鞋 | E112: 铂雅/华菲羊/依天使 | F112: 防滑软厚底 | G112: 防护脚 | H112: 双 | I112: 0 | J112: 5 | K112: 0 | L112: 5.00 | M112: 40.93 | N112: 0.00 | O112: 204.65 | P112: 0.00 | Q112: 204.65
A113: 111 | C113: 劳保物资 | D113: 雨伞 | E113: 任意品牌 | F113: 双人加固防风晴雨长柄 | G113: 下雨天 | H113: 把 | I113: 0 | J113: 205 | K113: 0 | L113: 205.00 | M113: 30.97 | N113: 0.00 | O113: 6348.85 | P113: 0.00 | Q113: 6348.85
A114: 112 | C114: 劳保物资 | D114: 大扫把 | E114: 任意品牌 | F114: 2.3米长 | G114: 生产区域卫生 | H114: 把 | I114: 0 | J114: 20 | K114: 0 | L114: 20 | M114: 17.46 | N114: 0.00 | O114: 349.20 | P114: 0.00 | Q114: 349.20
A115: 113 | C115: 劳保物资 | D115: 驱蛇粉 | E115: 悍顿、夏之雪、Searock/海岩、嘉嘉熊、SOUTH RANCH/南华千牧 | F115: 防蛇防虫，5斤/桶 | G115: 驱虫防蛇 | H115: 桶 | I115: 0 | J115: 12 | K115: 0 | L115: 12.00 | M115: 63.57 | N115: 0.00 | O115: 762.84 | P115: 0.00 | Q115: 762.84
A116: 114 | C116: 劳保物资 | D116: 竹编箩筐 | E116: 任意品牌 | F116: 直径45cm高35cm | G116: 盛装零散物体 | H116: 个 | I116: 0 | J116: 17 | K116: 0 | L116: 17.00 | M116: 59.47 | N116: 0.00 | O116: 1010.99 | P116: 0.00 | Q116: 1010.99
A117: 115 | C117: 劳保物资 | D117: 灭火器箱子 | E117: 永安/桂安/利生 | F117: 两层，可装2套呼吸器和2个4kg灭火器 | G117: 装ABC干粉灭火器 | H117: 个 | I117: 0 | J117: 50 | K117: 0 | L117: 50.00 | M117: 110.73 | N117: 0.00 | O117: 5536.50 | P117: 0.00 | Q117: 5536.50
A118: 116 | C118: 消防物资 | D118: 两个装灭火器箱 | E118: 共安/肇防/科兴 | F118: 4KG，通用型 | G118: 装ABC干粉灭火器 | H118: 个 | I118: 0 | J118: 42 | K118: 0 | L118: 42.00 | M118: 54.22 | N118: 0.00 | O118: 2277.24 | P118: 0.00 | Q118: 2277.24
A119: 117 | C119: 消防物资 | D119: 消防沙箱 | E119: 肇防、新技、永安 | F119: 50cm*38cm*50cm | G119: 盛装消防沙，消防用 | H119: 个 | I119: 0 | J119: 3 | K119: 0 | L119: 3.00 | M119: 138.38 | N119: 0.00 | O119: 415.14 | P119: 0.00 | Q119: 415.14
A120: 118 | C120: 消防物资 | D120: 安全物资应急柜 | E120: 肇防、新技、永安 | F120: 1800*1600*400mm | G120: 存放安全物资 | H120: 个 | I120: 0 | J120: 6 | K120: 0 | L120: 6.00 | M120: 1258.06 | N120: 0.00 | O120: 7548.36 | P120: 0.00 | Q120: 7548.36
A121: 119 | C121: 消防物资 | D121: 应急物资柜 | E121: 肇防、新技、永安 | F121: 75cm*45cm*25cm | G121: 存放安全物资 | H121: 个 | I121: 0 | J121: 4 | K121: 0 | L121: 4.00 | M121: 380.24 | N121: 0.00 | O121: 1520.96 | P121: 0.00 | Q121: 1520.96
A122: 120 | C122: 消防物资 | D122: 不锈钢灭火器箱 | E122: 肇防、新技、永安 | F122: 置地式，规格：约58*37*20cm,可放2个3KG二氧化碳灭火器 | G122: 装灭火器 | H122: 个 | I122: 0 | J122: 215 | K122: 0 | L122: 215.00 | M122: 215.12 | N122: 0.00 | O122: 46250.80 | P122: 0.00 | Q122: 46250.80
A123: 121 | C123: 消防物资 | D123: ABC干粉灭火器 | E123: 永安/桂安/联塑 | F123: 4kg，手提式，带消防S标 | G123: 紧急消防灭火器 | H123: 个 | I123: 0 | J123: 416 | K123: 0 | L123: 416.00 | M123: 43.81 | N123: 0.00 | O123: 18224.96 | P123: 0.00 | Q123: 18224.96
A124: 122 | C124: 消防物资 | D124: 二氧化碳灭火器 | E124: 永安/桂安/联塑 | F124: 3公斤 | G124: 化验室消防 | H124: 个 | I124: 0 | J124: 121 | K124: 0 | L124: 121.00 | M124: 132.44 | N124: 0.00 | O124: 16025.24 | P124: 0.00 | Q124: 16025.24
A125: 123 | C125: 消防物资 | D125: 水基灭火器 | E125: 集太、倍宁、神龙 | F125: 3L | G125: 电单车电池灭火 | H125: 个 | I125: 0 | J125: 64 | K125: 0 | L125: 64.00 | M125: 66.01 | N125: 0.00 | O125: 4224.64 | P125: 0.00 | Q125: 4224.64
A126: 124 | C126: 消防物资 | D126: 推车式干粉灭火器 | E126: 永安/桂安/利生 | F126: 35kg推车式干粉灭火器 | G126: 紧急消防灭火器 | H126: 个 | I126: 0 | J126: 6 | K126: 0 | L126: 6.00 | M126: 498.29 | N126: 0.00 | O126: 2989.74 | P126: 0.00 | Q126: 2989.74
A127: 125 | C127: 消防物资 | D127: 聚氨酯泡沫填缝剂 | E127: 家乐邦/纽盾/森戈 | F127: 金装版950g/瓶 | G127: 防汛堵电房电缆管 | H127: 瓶 | I127: 1 | J127: 0 | K127: 0 | L127: 1.00 | M127: 32.95 | N127: 32.95 | O127: 0.00 | P127: 0.00 | Q127: 32.95
A128: 126 | C128: 消防物资 | D128: 消防水枪 | E128: 天广/闽山/山河、沱雨 | F128: 口径65cm，带消防S标 | G128: 紧急消防灭火水带枪头 | H128: 个 | I128: 0 | J128: 95 | K128: 0 | L128: 95.00 | M128: 30.41 | N128: 0.00 | O128: 2888.95 | P128: 0.00 | Q128: 2888.95
A129: 127 | C129: 消防物资 | D129: 消防水枪 | E129: 天广/闽山/山河、沱雨 | F129: 口径50cm ，带消防S标 | G129: 紧急消防灭火水带枪头 | H129: 个 | I129: 0 | J129: 2 | K129: 0 | L129: 2.00 | M129: 28.08 | N129: 0.00 | O129: 56.16 | P129: 0.00 | Q129: 56.16
A130: 128 | C130: 消防物资 | D130: 消防水带 | E130: 天广/闽山/山河、沱雨 | F130: 长20米，带前后快接，带S标，口径50/65 | G130: 紧急消防灭火水带 | H130: 条 | I130: 0 | J130: 186 | K130: 0 | L130: 186.00 | M130: 91.21 | N130: 0.00 | O130: 16965.06 | P130: 0.00 | Q130: 16965.06
A131: 129 | C131: 消防物资 | D131: 消防水带接口 | E131: 天广/闽山/山河、沱雨 | F131: 型号：201，国标KD65，子母扣，带卡箍，带S标 | G131: 水带与水枪的连接头 | H131: 对 | I131: 0 | J131: 48 | K131: 0 | L131: 48.00 | M131: 53.89 | N131: 0.00 | O131: 2586.72 | P131: 0.00 | Q131: 2586.72
A132: 130 | C132: 消防物资 | D132: 消防栓启闭扳手 | E132: 天广/闽山/山河、沱雨 | F132: 8寸（200） | G132: 开合消防栓使用 | H132: 个 | I132: 0 | J132: 31 | K132: 0 | L132: 31.00 | M132: 25.40 | N132: =I132*M132 -> 0.00 | O132: =J132*M132 -> 787.40 | P132: =M132*K132 -> 0.00 | Q132: =P132+O132+N132 -> 787.40
A133: 131 | C133: 消防物资 | D133: 消防斧 | E133: 天广/闽山/山河、沱雨 | F133: 全长330mm，中碳钢 | G133: 紧急消防备用工具 | H133: 个 | I133: 0 | J133: 22 | K133: 0 | L133: 22.00 | M133: 71.50 | N133: 0.00 | O133: 1573.00 | P133: 0.00 | Q133: 1573.00
A134: 132 | C134: 消防物资 | D134: 消防黄沙桶 | E134: 任意品牌 | F134: 4L， 半圆烤漆铁桶，加厚 | G134: 内装消防沙，紧急消防备用 | H134: 个 | I134: 0 | J134: 76 | K134: 0 | L134: 76.00 | M134: 23.28 | N134: 0.00 | O134: 1769.28 | P134: 0.00 | Q134: 1769.28
A135: 133 | C135: 消防物资 | D135: 消防安全出口指示灯 | E135: 桂安/敏华/安迅 | F135: 双头，新国标应急时间≥90min，带消防S标,LED，照明灯3W，自带电源 | G135: 断电后紧急楼层楼道指引 | H135: 个 | I135: 0 | J135: 24 | K135: 0 | L135: 24.00 | M135: 26.55 | N135: 0.00 | O135: 637.20 | P135: 0.00 | Q135: 637.20
A136: 134 | C136: 消防物资 | D136: 警示灯 | E136: 任意品牌 | F136: 12V 不带响；磁铁吸式 | G136: 车顶或岗亭警示使用 | H136: 个 | I136: 1 | J136: 0 | K136: 0 | L136: 1.00 | M136: 27.08 | N136: 27.08 | O136: 0.00 | P136: 0.00 | Q136: 27.08
A137: 135 | C137: 消防物资 | D137: 灭火器检查记录卡套 | E137: 任意品牌 | F137: 卡片规格9cm*12cm，卡片、卡套、扎带三合一 | G137: 灭火器检查记录 | H137: 套 | I137: 0 | J137: 1853 | K137: 0 | L137: 1853.00 | M137: 0.77 | N137: 0.00 | O137: 1426.81 | P137: 0.00 | Q137: 1426.81
A138: 136 | C138: 消防物资 | D138: 灭火毯 | E138: 胜安、百舸、洪湖 | F138: 1米*1米 | G138: 灭火应急使用 | H138: 条 | I138: 0 | J138: 51 | K138: 0 | L138: 51.00 | M138: 25.23 | N138: 0.00 | O138: 1286.73 | P138: 0.00 | Q138: 1286.73
A139: 137 | C139: 消防物资 | D139: 防火泥 | E139: 腾驰、趣行、者也 | F139: 2公斤/包 | G139: 防火堵烟，耐油防腐蚀，耐水耐高温 | H139: 包 | I139: 0 | J139: 369 | K139: 0 | L139: 369.00 | M139: 14.07 | N139: 0.00 | O139: 5191.83 | P139: 0.00 | Q139: 5191.83
A140: 138 | C140: 消防物资 | D140: 胀裂式自动灭火装置 | E140: 天广/闽山/山河、沱雨 | F140: 1.0L | G140: 迅速投掷灭火 | H140: 个 | I140: 0 | J140: 70 | K140: 0 | L140: 70.00 | M140: 91.18 | N140: 0.00 | O140: 6382.60 | P140: 0.00 | Q140: 6382.60
A141: 139 | C141: 消防物资 | D141: 逃生应急箱 | E141: 趣行、星空、腾驰 | F141: 铝合金材质长455cm宽33cm高15cm，里面包含一个手电筒，一张灭火毯，2个逃生面具，一个灭火器，一条逃生绳一把腰斧，一双手套 | G141: 消防应急使用，快捷方便 | H141: 套 | I141: 0 | J141: 22 | K141: 0 | L141: 22.00 | M141: 323.60 | N141: 0.00 | O141: 7119.20 | P141: 0.00 | Q141: 7119.20
A142: 140 | C142: 消防物资 | D142: 独立式烟感器 | E142: 168、松下、东消 | F142: 独立式光电感烟火灾探测报警器 | G142: 着火触发报警，可迅速逃离 | H142: 个 | I142: 0 | J142: 10 | K142: 0 | L142: 10.00 | M142: 82.40 | N142: 0.00 | O142: 824.00 | P142: 0.00 | Q142: 824.00
A143: 141 | C143: 消防物资 | D143: 天然气报警器 | E143: 岡祈/豪恩/凌防 | F143: 任意 | G143: 厨房天然气放置处安装 | H143: 个 | I143: 0 | J143: 13 | K143: 0 | L143: 13.00 | M143: 76.96 | N143: 0.00 | O143: 1000.48 | P143: 0.00 | Q143: 1000.48
A144: 142 | C144: 消防物资 | D144: 灭火器放置点贴纸 | E144: 任意品牌 | F144: 40mm*50mm | G144: 消防标识 | H144: 块 | I144: 0 | J144: 300 | K144: 0 | L144: 300.00 | M144: 6.16 | N144: 0.00 | O144: 1848.00 | P144: 0.00 | Q144: 1848.00
A145: 143 | C145: 消防物资 | D145: 过滤式自救呼吸器 | E145: 浙安、智汇、兴安、盟安 | F145: TZL30型，消防认证 | G145: 消防逃生、自救 | H145: 个 | I145: 0 | J145: 305 | K145: 0 | L145: 305.00 | M145: 26.62 | N145: 0.00 | O145: 8119.10 | P145: 0.00 | Q145: 8119.10
A146: 144 | C146: 消防物资 | D146: 通风机配套软管 | E146: 阿斯卡利、 六奥、HEYUNCN、 欧士戈、阿斯卡利 | F146: 350mm，10m/条，钢丝骨架，PVC夹网布，防腐，耐酸碱，阻燃 | G146: 有限空间作业通风 | H146: 条 | I146: 0 | J146: 16 | K146: 0 | L146: 16.00 | M146: 319.73 | N146: 0.00 | O146: 5115.68 | P146: 0.00 | Q146: 5115.68
A147: 145 | C147: 劳保物资 | D147: 消防防火套装 | E147: 美康、华通、梅思安 | F147: 含衣服、帽子、腰带、手套、鞋子消防防火套 加厚型 | G147: 消防阻燃训练 | H147: 套 | I147: 0 | J147: 11 | K147: 0 | L147: 11.00 | M147: 876.11 | N147: 0.00 | O147: 9637.21 | P147: 0.00 | Q147: 9637.21
A148: 146 | C148: 消防物资 | D148: 反光衣 | E148: 安大叔、路达、亿中 | F148: 红黄相间 | G148: 方便紧急辨识，应急 | H148: 件 | I148: 0 | J148: 20 | K148: 0 | L148: 20.00 | M148: 23.59 | N148: 0.00 | O148: 471.80 | P148: 0.00 | Q148: 471.80
A149: 147 | C149: 消防物资 | D149: 消防软梯 | E149: 任意品牌 | F149: 10米/架，高强度涤纶绳：最大承重420KG，环氧树脂防滑梯管 | G149: 逃生自救使用 | H149: 架 | I149: 0 | J149: 6 | K149: 0 | L149: 6.00 | M149: 216.04 | N149: 0.00 | O149: 1296.24 | P149: 0.00 | Q149: 1296.24
A150: 148 | C150: 消防物资 | D150: 安全出口指示灯 | E150: 敏华/桂安/安迅 | F150: 单面 安全出口，3C认证 新国标led，1W，自带蓄电池 | G150: 断电紧急供电使用 | H150: 个 | I150: 10 | J150: 0 | K150: 0 | L150: 10.00 | M150: 32.02 | N150: 320.20 | O150: 0.00 | P150: 0.00 | Q150: 320.20
A151: 149 | C151: 消防物资 | D151: 防汛沙包袋 | E151: 任意品牌 | F151: 70*25CM标准款 | G151: 装消防备用沙 | H151: 套 | I151: 0 | J151: 570 | K151: 0 | L151: 570.00 | M151: 8.85 | N151: 0.00 | O151: 5044.50 | P151: 0.00 | Q151: 5044.50
A152: 150 | C152: 消防物资 | D152: 消防铁铲 | E152: 任意品牌 | F152: 消防专用铁锹1米 | G152: 紧急消防备用工具 | H152: 把 | I152: 0 | J152: 75 | K152: 0 | L152: 75.00 | M152: 45.12 | N152: 0.00 | O152: 3384.00 | P152: 0.00 | Q152: 3384.00
A153: 不含税合计（元） | Q153: =SUM(Q3:Q152) -> 1619649.08
A154: 注：本清单项目价格为不含税价格。
